fUST/lending_fUST_20250129
["ID","MTS","AMOUNT","RATE_DAILY","PERIOD"]
[350734941,1738095044065,-500.0,0.00016712,2]
[350734942,1738095044074,-1613.34,0.00016712,2]
[350734943,1738095044084,-500.0,0.00016712,2]
[350734944,1738095044094,-500.0,0.00016712,2]
[350734945,1738095044103,-706.69,0.00016712,2]
[350734946,1738095044113,-500.0,0.00016712,2]
[350734947,1738095044123,-5671.42,0.00016712,2]
[350734948,1738095044132,-500.0,0.00016712,2]
[350734949,1738095044141,-500.0,0.00016712,2]
[350734951,1738095044151,-1191.48,0.00016712,2]
[350734952,1738095044161,-500.0,0.00016712,2]
[350734953,1738095044171,-673.03,0.00016712,2]
[350734954,1738095044181,-583.50170728,0.00016712,2]
[350734955,1738095044189,-755.48,0.00016712,2]
[350734956,1738095044199,-500.0,0.00016712,2]
[350734957,1738095044209,-500.0,0.00016712,2]
[350734958,1738095044220,-1443.87,0.00016712,2]
[350734959,1738095044230,-728.33,0.00016712,2]
[350734960,1738095044241,-523.45,0.00016712,2]
[350734961,1738095044250,-1000.0,0.00016742,2]
[350734962,1738095044259,-1000.0,0.00016743,2]
[350734963,1738095044268,-163.0,0.00016792,2]
[350734964,1738095044277,-163.0,0.00016792,2]
[350734965,1738095044287,-163.0,0.00016792,2]
[350734966,1738095044296,-163.0,0.00016792,2]
[350734967,1738095044307,-1144.97172982,0.00016796,2]
[350734968,1738095044316,-151.0,0.000168,2]
[350734969,1738095044325,-621.0,0.000168,2]
[350734970,1738095044334,-631.24829901,0.00016805,2]
[350734971,1738095044344,-151.0,0.00016848,2]
[350734972,1738095044354,-310.48475393,0.00016849,2]
[350734973,1738095044363,-500.0,0.00016849,2]
[350734974,1738095044372,-278.67,0.00016849,2]
[350734975,1738095044382,-537.53,0.00016849,2]
[350734976,1738095044391,-500.0,0.00016849,2]
[350734978,1738095044400,-500.0,0.00016849,2]
[350734980,1738095044410,-549.06630047,0.00016849,2]
[350734982,1738095044420,-473.0857902,0.00016849,2]
[350734984,1738095044430,-500.0,0.00016849,2]
[350734985,1738095044440,-500.0,0.00016849,2]
[350734986,1738095044449,-500.0,0.00016849,2]
[350734987,1738095044458,-500.0,0.00016849,2]
[350734989,1738095044468,-637.08348732,0.00016849,2]
[350734991,1738095044477,-500.0,0.00016849,2]
[350734993,1738095044486,-500.0,0.00016849,2]
[350734995,1738095044496,-500.0,0.00016849,2]
[350734996,1738095044506,-500.0,0.00016849,2]
[350734997,1738095044515,-500.32010098,0.00016849,2]
[350734998,1738095044525,-531.69868327,0.00016849,2]
[350734999,1738095044534,-500.0,0.00016849,2]
[350735000,1738095044544,-500.0,0.00016849,2]
[350735001,1738095044554,-505.34879406,0.00016849,2]
[350735002,1738095044563,-935.05,0.00016849,2]
[350735003,1738095044573,-500.0,0.00016849,2]
[350735004,1738095044583,-500.0,0.00016849,2]
[350735005,1738095044593,-150.15,0.00016849,2]
[350735006,1738095044602,-500.0,0.00016849,2]
[350735007,1738095044612,-150.15,0.00016849,2]
[350735008,1738095044621,-150.15,0.00016849,2]
[350735009,1738095044631,-13791.98,0.00016849,2]
[350735010,1738095044735,-500.0,0.00016849,2]
[350735011,1738095044745,-645.56681976,0.00016849,2]
[350735012,1738095044755,-783.58,0.00016849,2]
[350735013,1738095044765,-651.72,0.00016849,2]
[350735014,1738095044775,-500.0,0.00016849,2]
[350735015,1738095044785,-1395.62,0.00016849,2]
[350735016,1738095044798,-500.0,0.00016849,2]
[350735017,1738095044808,-500.0,0.00016849,2]
[350735018,1738095044817,-500.0,0.00016849,2]
[350735019,1738095044827,-4374.37,0.00016849,2]
[350735020,1738095044838,-500.0,0.00016849,2]
[350735021,1738095044847,-928.46,0.00016849,2]
[350735022,1738095044857,-500.0,0.00016849,2]
[350735023,1738095044868,-150.15,0.00016849,2]
[350735024,1738095044877,-150.15,0.00016849,2]
[350735025,1738095044886,-500.0,0.00016849,2]
[350735026,1738095044896,-500.0,0.00016849,2]
[350735027,1738095044906,-2107.22,0.00016849,2]
[350735028,1738095044916,-300.24,0.00016849,2]
[350735029,1738095044928,-500.0,0.00016849,2]
[350735030,1738095044937,-500.0,0.00016849,2]
[350735031,1738095044947,-300.04,0.00016849,2]
[350735032,1738095044958,-300.1657664,0.00016849,2]
[350735033,1738095044967,-500.0,0.00016849,2]
[350735034,1738095044977,-407.18829591,0.00016849,2]
[350735035,1738095044987,-699.6,0.00016849,2]
[350735036,1738095044996,-500.0,0.00016849,2]
[350735037,1738095045005,-500.0,0.00016849,2]
[350735038,1738095045015,-500.0,0.00016849,2]
[350735039,1738095045024,-150.15,0.00016849,2]
[350735040,1738095045034,-150.15,0.00016849,2]
[350735041,1738095045043,-613.1,0.00016849,2]
[350735042,1738095045053,-500.0,0.00016849,2]
[350735043,1738095045062,-500.0,0.00016849,2]
[350735044,1738095045071,-500.0,0.00016849,2]
[350735045,1738095045081,-2467.19,0.00016849,2]
[350735046,1738095045090,-3673.36,0.00016849,2]
[350735047,1738095045100,-500.0,0.00016849,2]
[350735048,1738095045109,-500.0,0.00016849,2]
[350735049,1738095045118,-1341.71,0.00016849,2]
[350735050,1738095045127,-622.61,0.00016849,2]
[350735051,1738095045137,-798.14,0.00016849,2]
[350735052,1738095045145,-500.0,0.00016849,2]
[350735053,1738095045155,-545.83214331,0.00016849,2]
[350735054,1738095045164,-500.0,0.00016849,2]
[350735055,1738095045175,-1780.37,0.00016849,2]
[350735056,1738095045184,-529.27,0.00016849,2]
[350735057,1738095045194,-553.58,0.00016849,2]
[350735058,1738095045203,-500.0,0.00016849,2]
[350735059,1738095045213,-179.704356,0.00016849,2]
[350735060,1738095045222,-500.0,0.00016849,2]
[350735061,1738095045231,-500.0,0.00016849,2]
[350735062,1738095045240,-500.0,0.00016849,2]
[350735063,1738095045249,-1613.34,0.00016849,2]
[350735064,1738095045258,-500.0,0.00016849,2]
[350735065,1738095045268,-706.69,0.00016849,2]
[350735066,1738095045277,-500.0,0.00016849,2]
[350735067,1738095045286,-500.0,0.00016849,2]
[350735068,1738095045295,-5671.42,0.00016849,2]
[350735069,1738095045304,-500.0,0.00016849,2]
[350735070,1738095045313,-500.0,0.00016849,2]
[350735071,1738095045322,-1191.48,0.00016849,2]
[350735072,1738095045332,-500.0,0.00016849,2]
[350735073,1738095045341,-673.03,0.00016849,2]
[350735074,1738095045351,-755.48,0.00016849,2]
[350735075,1738095045361,-500.0,0.00016849,2]
[350735076,1738095045370,-500.0,0.00016849,2]
[350735077,1738095045379,-1443.87,0.00016849,2]
[350735078,1738095045388,-728.33,0.00016849,2]
[350735079,1738095045398,-523.45,0.00016849,2]
[350735080,1738095045408,-500.0,0.00016861,2]
[350735081,1738095045418,-500.0,0.00016882,2]
[350735082,1738095045427,-259.32,0.000169,2]
[350735083,1738095045436,-4990.19,0.000169,2]
[350735084,1738095045446,-500.0,0.000169,2]
[350735085,1738095045455,-420.0,0.0001695,2]
[350735086,1738095045467,-500.0,0.00016986,2]
[350735087,1738095045477,-537.53,0.00016986,2]
[350735088,1738095045487,-500.0,0.00016986,2]
[350735089,1738095045498,-500.0,0.00016986,2]
[350735090,1738095045507,-596.59591009,0.00016986,2]
[350735091,1738095045516,-500.0,0.00016986,2]
[350735092,1738095045526,-500.0,0.00016986,2]
[350735093,1738095045535,-500.0,0.00016986,2]
[350735094,1738095045544,-500.0,0.00016986,2]
[350735095,1738095045553,-362.36106052,0.00016986,2]
[350735096,1738095045562,-640.75206939,0.00016986,2]
[350735097,1738095045571,-500.0,0.00016986,2]
[350735098,1738095045580,-500.0,0.00016986,2]
[350735099,1738095045589,-935.05,0.00016986,2]
[350735100,1738095045598,-350.0,0.00016986,2]
[350735101,1738095045607,-500.0,0.00016986,2]
[350735102,1738095045616,-500.0,0.00016986,2]
[350735103,1738095045625,-13791.98,0.00016986,2]
[350735104,1738095045634,-500.0,0.00016986,2]
[350735105,1738095045643,-783.58,0.00016986,2]
[350735106,1738095045652,-651.72,0.00016986,2]
[350735107,1738095045661,-500.0,0.00016986,2]
[350735108,1738095045672,-1395.62,0.00016986,2]
[350735109,1738095045681,-192.92548583,0.00016986,2]
[350735110,1738095045691,-500.0,0.00016986,2]
[350735111,1738095045701,-500.0,0.00016986,2]
[350735112,1738095045710,-4374.37,0.00016986,2]
[350735113,1738095045721,-416.97,0.00016986,2]
[350735114,1738095045730,-928.46,0.00016986,2]
[350735115,1738095045740,-500.0,0.00016986,2]
[350735116,1738095045749,-2107.22,0.00016986,2]
[350735117,1738095045759,-327.33,0.00016986,2]
[350735118,1738095045767,-500.0,0.00016986,2]
[350735119,1738095045777,-699.6,0.00016986,2]
[350735120,1738095045786,-500.0,0.00016986,2]
[350735121,1738095045797,-613.1,0.00016986,2]
[350735122,1738095045808,-500.0,0.00016986,2]
[350735123,1738095045817,-500.0,0.00016986,2]
[350735124,1738095045827,-535.1307218,0.00016986,2]
[350735125,1738095045838,-2467.19,0.00016986,2]
[350735126,1738095045848,-500.0,0.00016986,2]
[350735127,1738095045858,-3673.36,0.00016986,2]
[350735128,1738095045867,-500.0,0.00016986,2]
[350735129,1738095045878,-1341.71,0.00016986,2]
[350735130,1738095045888,-622.61,0.00016986,2]
[350735131,1738095045897,-798.14,0.00016986,2]
[350735132,1738095045906,-500.0,0.00016986,2]
[350735133,1738095045916,-500.0,0.00016986,2]
[350735134,1738095045926,-1780.37,0.00016986,2]
[350735135,1738095045935,-529.27,0.00016986,2]
[350735136,1738095045944,-553.58,0.00016986,2]
[350735137,1738095045955,-500.0,0.00016986,2]
[350735138,1738095045963,-500.0,0.00016986,2]
[350735139,1738095045973,-500.0,0.00016986,2]
[350735140,1738095045983,-1613.34,0.00016986,2]
[350735141,1738095045992,-500.0,0.00016986,2]
[350735142,1738095046001,-706.69,0.00016986,2]
[350735143,1738095046010,-500.0,0.00016986,2]
[350735144,1738095046019,-500.0,0.00016986,2]
[350735145,1738095046028,-5671.42,0.00016986,2]
[350735146,1738095046038,-500.0,0.00016986,2]
[350735147,1738095046047,-500.0,0.00016986,2]
[350735148,1738095046056,-1191.48,0.00016986,2]
[350735149,1738095046065,-643.6971089,0.00016986,2]
[350735150,1738095046075,-673.03,0.00016986,2]
[350735151,1738095046084,-755.48,0.00016986,2]
[350735152,1738095046093,-500.0,0.00016986,2]
[350735153,1738095046102,-500.0,0.00016986,2]
[350735154,1738095046111,-1443.87,0.00016986,2]
[350735155,1738095046121,-728.33,0.00016986,2]
[350735156,1738095046130,-523.45,0.00016986,2]
[350735157,1738095046139,-151.0,0.00017033,2]
[350735158,1738095046148,-224.0,0.00017114,2]
[350735159,1738095046158,-465.00213114,0.00017115,2]
[350735160,1738095046170,-150.15,0.00017123,2]
[350735161,1738095046180,-150.15,0.00017123,2]
[350735162,1738095046189,-500.0,0.00017123,2]
[350735163,1738095046199,-150.15,0.00017123,2]
[350735164,1738095046208,-175.23041819,0.00017123,2]
[350735165,1738095046217,-500.0,0.00017123,2]
[350735166,1738095046227,-805.68943449,0.00017123,2]
[350735167,1738095046236,-500.0,0.00017123,2]
[350735168,1738095046246,-500.0,0.00017123,2]
[350735169,1738095046255,-150.15,0.00017123,2]
[350735171,1738095046265,-500.0,0.00017123,2]
[350735172,1738095046274,-537.53,0.00017123,2]
[350735173,1738095046283,-500.0,0.00017123,2]
[350735174,1738095046293,-500.0,0.00017123,2]
[350735175,1738095046302,-263.53260933,0.00017123,2]
[350735176,1738095046311,-500.0,0.00017123,2]
[350735177,1738095046320,-500.0,0.00017123,2]
[350735178,1738095046329,-500.0,0.00017123,2]
[350735179,1738095046338,-500.0,0.00017123,2]
[350735180,1738095046347,-935.05,0.00017123,2]
[350735181,1738095046357,-500.0,0.00017123,2]
[350735182,1738095046366,-500.0,0.00017123,2]
[350735183,1738095046375,-13791.98,0.00017123,2]
[350735184,1738095046384,-392.74704338,0.00017123,2]
[350735185,1738095046394,-783.58,0.00017123,2]
[350735186,1738095046403,-651.72,0.00017123,2]
[350735187,1738095046412,-500.0,0.00017123,2]
[350735188,1738095046423,-1395.62,0.00017123,2]
[350735189,1738095046433,-500.0,0.00017123,2]
[350735190,1738095046443,-500.0,0.00017123,2]
[350735191,1738095046539,-4374.37,0.00017123,2]
[350735192,1738095046549,-928.46,0.00017123,2]
[350735193,1738095046558,-500.0,0.00017123,2]
[350735194,1738095046568,-2107.22,0.00017123,2]
[350735195,1738095046577,-500.0,0.00017123,2]
[350735196,1738095046586,-699.6,0.00017123,2]
[350735197,1738095046596,-621.15,0.00017123,2]
[350735198,1738095046605,-613.1,0.00017123,2]
[350735199,1738095046615,-500.0,0.00017123,2]
[350735200,1738095046624,-500.0,0.00017123,2]
[350735201,1738095046633,-2467.19,0.00017123,2]
[350735202,1738095046643,-500.0,0.00017123,2]
[350735203,1738095046652,-3673.36,0.00017123,2]
[350735204,1738095046662,-500.0,0.00017123,2]
[350735205,1738095046672,-1341.71,0.00017123,2]
[350735206,1738095046681,-622.61,0.00017123,2]
[350735207,1738095046690,-798.14,0.00017123,2]
[350735208,1738095046700,-500.0,0.00017123,2]
[350735209,1738095046709,-500.0,0.00017123,2]
[350735210,1738095046719,-1780.37,0.00017123,2]
[350735211,1738095046728,-529.27,0.00017123,2]
[350735212,1738095046738,-553.58,0.00017123,2]
[350735213,1738095046747,-500.0,0.00017123,2]
[350735214,1738095046757,-505.05464098,0.00017123,2]
[350735215,1738095046767,-500.0,0.00017123,2]
[350735216,1738095046777,-1613.34,0.00017123,2]
[350735217,1738095046786,-500.0,0.00017123,2]
[350735218,1738095046800,-706.69,0.00017123,2]
[350735219,1738095046811,-500.0,0.00017123,2]
[350735220,1738095046820,-355.28982441,0.00017123,2]
[350735221,1738095046829,-5671.42,0.00017123,2]
[350735222,1738095046839,-500.0,0.00017123,2]
[350735223,1738095046848,-500.0,0.00017123,2]
[350735224,1738095046858,-1191.48,0.00017123,2]
[350735225,1738095046867,-673.03,0.00017123,2]
[350735226,1738095046878,-755.48,0.00017123,2]
[350735227,1738095046889,-500.0,0.00017123,2]
[350735228,1738095046899,-500.0,0.00017123,2]
[350735229,1738095046909,-1443.87,0.00017123,2]
[350735230,1738095046918,-728.33,0.00017123,2]
[350735231,1738095046928,-523.45,0.00017123,2]
[350735232,1738095046938,-432.451,0.00017127,2]
[350735233,1738095046948,-5423.43,0.000172,2]
[350735234,1738095046957,-158.0,0.00017257,2]
[350735235,1738095046967,-158.0,0.00017257,2]
[350735236,1738095046976,-158.0,0.00017257,2]
[350735237,1738095046986,-192.58,0.00017257,2]
[350735238,1738095046995,-500.0,0.0001726,2]
[350735239,1738095047005,-537.53,0.0001726,2]
[350735240,1738095047014,-500.0,0.0001726,2]
[350735241,1738095047024,-500.0,0.0001726,2]
[350735242,1738095047033,-500.0,0.0001726,2]
[350735243,1738095047043,-500.0,0.0001726,2]
[350735244,1738095047053,-500.0,0.0001726,2]
[350735245,1738095047063,-935.05,0.0001726,2]
[350735246,1738095047073,-500.0,0.0001726,2]
[350735247,1738095047083,-500.0,0.0001726,2]
[350735248,1738095047092,-13791.98,0.0001726,2]
[350735249,1738095047102,-783.58,0.0001726,2]
[350735250,1738095047112,-651.72,0.0001726,2]
[350735251,1738095047121,-287.17687862,0.0001726,2]
[350735252,1738095047132,-1395.62,0.0001726,2]
[350735253,1738095047141,-500.0,0.0001726,2]
[350735254,1738095047151,-500.0,0.0001726,2]
[350735255,1738095047161,-4374.37,0.0001726,2]
[350735256,1738095047171,-928.46,0.0001726,2]
[350735257,1738095047180,-500.0,0.0001726,2]
[350735258,1738095047189,-2107.22,0.0001726,2]
[350735259,1738095047199,-500.0,0.0001726,2]
[350735260,1738095047208,-699.6,0.0001726,2]
[350735262,1738095047218,-613.1,0.0001726,2]
[350735263,1738095047227,-500.0,0.0001726,2]
[350735265,1738095047237,-500.0,0.0001726,2]
[350735267,1738095047246,-2467.19,0.0001726,2]
[350735268,1738095047257,-598.48,0.0001726,2]
[350735269,1738095047267,-3673.36,0.0001726,2]
[350735270,1738095047277,-500.0,0.0001726,2]
[350735271,1738095047286,-1341.71,0.0001726,2]
[350735272,1738095047296,-622.61,0.0001726,2]
[350735273,1738095047306,-798.14,0.0001726,2]
[350735274,1738095047315,-500.0,0.0001726,2]
[350735275,1738095047325,-500.0,0.0001726,2]
[350735276,1738095047335,-1780.37,0.0001726,2]
[350735277,1738095047346,-529.27,0.0001726,2]
[350735278,1738095047355,-553.58,0.0001726,2]
[350735279,1738095047364,-500.0,0.0001726,2]
[350735280,1738095047374,-500.0,0.0001726,2]
[350735281,1738095047383,-1613.34,0.0001726,2]
[350735282,1738095047393,-500.0,0.0001726,2]
[350735283,1738095047403,-706.69,0.0001726,2]
[350735284,1738095047414,-500.0,0.0001726,2]
[350735285,1738095047425,-5671.42,0.0001726,2]
[350735286,1738095047434,-500.0,0.0001726,2]
[350735287,1738095047443,-500.0,0.0001726,2]
[350735288,1738095047454,-1191.48,0.0001726,2]
[350735289,1738095047464,-673.03,0.0001726,2]
[350735290,1738095047473,-755.48,0.0001726,2]
[350735291,1738095047483,-500.0,0.0001726,2]
[350735292,1738095047493,-517.13008383,0.0001726,2]
[350735293,1738095047502,-1443.87,0.0001726,2]
[350735294,1738095047512,-728.33,0.0001726,2]
[350735295,1738095047521,-523.45,0.0001726,2]
[350735296,1738095047531,-158.0,0.00017291,2]
[350735297,1738095047541,-158.0,0.00017291,2]
[350735298,1738095047551,-158.0,0.00017291,2]
[350735299,1738095047561,-158.0,0.00017291,2]
[350735300,1738095047570,-158.0,0.00017291,2]
[350735301,1738095047579,-158.0,0.00017291,2]
[350735302,1738095047589,-158.0,0.00017291,2]
[350735303,1738095047598,-158.0,0.00017291,2]
[350735304,1738095047607,-158.0,0.00017291,2]
[350735305,1738095047617,-158.0,0.00017291,2]
[350735306,1738095047627,-158.0,0.00017291,2]
[350735307,1738095047636,-158.0,0.00017291,2]
[350735308,1738095047645,-158.0,0.00017291,2]
[350735309,1738095047655,-290.21,0.00017291,2]
[350735310,1738095047665,-150.15,0.00017397,2]
[350735311,1738095047675,-150.15,0.00017397,2]
[350735312,1738095047685,-801.70050127,0.00017397,2]
[350735313,1738095047695,-150.15,0.00017397,2]
[350735314,1738095047705,-600.28,0.00017397,2]
[350735315,1738095047715,-500.0,0.00017397,2]
[350735316,1738095047725,-500.0,0.00017397,2]
[350735317,1738095047735,-150.15,0.00017397,2]
[350735318,1738095047744,-324.82925671,0.00017397,2]
[350735319,1738095047754,-537.53,0.00017397,2]
[350735320,1738095047764,-500.0,0.00017397,2]
[350735321,1738095047773,-500.0,0.00017397,2]
[350735322,1738095047783,-500.0,0.00017397,2]
[350735323,1738095047793,-361.12331457,0.00017397,2]
[350735324,1738095047806,-248.79,0.00017397,2]
[350735325,1738095047816,-935.05,0.00017397,2]
[350735326,1738095047826,-500.0,0.00017397,2]
[350735327,1738095047836,-500.0,0.00017397,2]
[350735328,1738095047848,-13791.98,0.00017397,2]
[350735329,1738095047857,-783.58,0.00017397,2]
[350735330,1738095047867,-651.72,0.00017397,2]
[350735331,1738095047878,-1395.62,0.00017397,2]
[350735332,1738095047887,-500.0,0.00017397,2]
[350735333,1738095047897,-500.0,0.00017397,2]
[350735334,1738095047908,-4374.37,0.00017397,2]
[350735335,1738095047918,-928.46,0.00017397,2]
[350735336,1738095047928,-500.0,0.00017397,2]
[350735337,1738095047937,-2107.22,0.00017397,2]
[350735338,1738095047948,-500.0,0.00017397,2]
[350735339,1738095047958,-699.6,0.00017397,2]
[350735340,1738095047968,-613.1,0.00017397,2]
[350735341,1738095047978,-500.0,0.00017397,2]
[350735342,1738095047987,-500.0,0.00017397,2]
[350735343,1738095047998,-2467.19,0.00017397,2]
[350735344,1738095048008,-3673.36,0.00017397,2]
[350735345,1738095048018,-1341.71,0.00017397,2]
[350735346,1738095048028,-622.61,0.00017397,2]
[350735347,1738095048038,-798.14,0.00017397,2]
[350735348,1738095048048,-500.0,0.00017397,2]
[350735349,1738095048057,-500.0,0.00017397,2]
[350735350,1738095048067,-1780.37,0.00017397,2]
[350735351,1738095048076,-529.27,0.00017397,2]
[350735352,1738095048085,-553.58,0.00017397,2]
[350735353,1738095048095,-500.0,0.00017397,2]
[350735354,1738095048107,-500.0,0.00017397,2]
[350735355,1738095048117,-1613.34,0.00017397,2]
[350735356,1738095048127,-500.0,0.00017397,2]
[350735357,1738095048138,-706.69,0.00017397,2]
[350735358,1738095048149,-500.0,0.00017397,2]
[350735359,1738095048159,-5671.42,0.00017397,2]
[350735360,1738095048245,-500.0,0.00017397,2]
[350735361,1738095048255,-500.0,0.00017397,2]
[350735362,1738095048265,-1191.48,0.00017397,2]
[350735363,1738095048281,-673.03,0.00017397,2]
[350735364,1738095048292,-755.48,0.00017397,2]
[350735365,1738095048303,-500.0,0.00017397,2]
[350735366,1738095048313,-1443.87,0.00017397,2]
[350735367,1738095048324,-728.33,0.00017397,2]
[350735368,1738095048334,-523.45,0.00017397,2]
[350735369,1738095048345,-717.73343267,0.000174,2]
[350735370,1738095048355,-1000.0,0.00017409,2]
[350735371,1738095048366,-9144.07196116,0.000175,2]
[350735372,1738095048376,-977.51016766,0.00017507,2]
[350735373,1738095048387,-537.53,0.00017534,2]
[350735374,1738095048397,-500.0,0.00017534,2]
[350735375,1738095048407,-500.0,0.00017534,2]
[350735376,1738095048419,-500.0,0.00017534,2]
[350735377,1738095048428,-935.05,0.00017534,2]
[350735378,1738095048438,-500.0,0.00017534,2]
[350735379,1738095048448,-500.0,0.00017534,2]
[350735380,1738095048457,-13791.98,0.00017534,2]
[350735381,1738095048467,-783.58,0.00017534,2]
[350735382,1738095048477,-651.72,0.00017534,2]
[350735383,1738095048487,-1395.62,0.00017534,2]
[350735384,1738095048497,-500.0,0.00017534,2]
[350735385,1738095048507,-500.0,0.00017534,2]
[350735386,1738095048517,-4374.37,0.00017534,2]
[350735387,1738095048527,-928.46,0.00017534,2]
[350735388,1738095048537,-500.0,0.00017534,2]
[350735389,1738095048547,-2107.22,0.00017534,2]
[350735390,1738095048557,-500.0,0.00017534,2]
[350735391,1738095048567,-699.6,0.00017534,2]
[350735392,1738095048577,-613.1,0.00017534,2]
[350735393,1738095048588,-500.0,0.00017534,2]
[350735394,1738095048598,-500.0,0.00017534,2]
[350735395,1738095048608,-2467.19,0.00017534,2]
[350735396,1738095048617,-3673.36,0.00017534,2]
[350735397,1738095048627,-1341.71,0.00017534,2]
[350735398,1738095048637,-622.61,0.00017534,2]
[350735399,1738095048646,-798.14,0.00017534,2]
[350735400,1738095048656,-500.0,0.00017534,2]
[350735401,1738095048667,-278.15841541,0.00017534,2]
[350735402,1738095048678,-1780.37,0.00017534,2]
[350735403,1738095048687,-529.27,0.00017534,2]
[350735404,1738095048697,-553.58,0.00017534,2]
[350735405,1738095048708,-500.0,0.00017534,2]
[350735406,1738095048718,-500.0,0.00017534,2]
[350735407,1738095048728,-1613.34,0.00017534,2]
[350735408,1738095048738,-500.0,0.00017534,2]
[350735409,1738095048748,-706.69,0.00017534,2]
[350735410,1738095048759,-500.0,0.00017534,2]
[350735411,1738095048768,-5671.42,0.00017534,2]
[350735412,1738095048779,-500.0,0.00017534,2]
[350735413,1738095048789,-500.0,0.00017534,2]
[350735414,1738095048801,-1191.48,0.00017534,2]
[350735415,1738095048811,-673.03,0.00017534,2]
[350735416,1738095048820,-755.48,0.00017534,2]
[350735417,1738095048830,-500.0,0.00017534,2]
[350735418,1738095048841,-1443.87,0.00017534,2]
[350735419,1738095048851,-728.33,0.00017534,2]
[350735420,1738095048861,-523.45,0.00017534,2]
[350735421,1738095048871,-165.79,0.00017546,2]
[350735422,1738095048882,-600.0,0.00017564,2]
[350735423,1738095048892,-172.51,0.00017588,2]
[350735424,1738095048901,-300.0,0.000176,7]
[350735425,1738095048911,-297.0,0.0001767,2]
[350735426,1738095048921,-150.15,0.00017671,2]
[350735427,1738095048931,-150.15,0.00017671,2]
[350735428,1738095048941,-150.15,0.00017671,2]
[350735429,1738095048951,-500.0,0.00017671,2]
[350735430,1738095048960,-500.0,0.00017671,2]
[350735431,1738095048970,-150.15,0.00017671,2]
[350735432,1738095048979,-537.53,0.00017671,2]
[350735433,1738095048989,-500.0,0.00017671,2]
[350735434,1738095048998,-500.0,0.00017671,2]
[350735435,1738095049008,-500.0,0.00017671,2]
[350735436,1738095049018,-935.05,0.00017671,2]
[350735437,1738095049035,-500.0,0.00017671,2]
[350735438,1738095049053,-518.81607869,0.00017671,2]
[350735439,1738095049070,-13791.98,0.00017671,2]
[350735440,1738095049085,-783.58,0.00017671,2]
[350735441,1738095049101,-651.72,0.00017671,2]
[350735442,1738095049117,-1395.62,0.00017671,2]
[350735443,1738095049134,-500.0,0.00017671,2]
[350735444,1738095049150,-500.0,0.00017671,2]
[350735445,1738095049168,-4374.37,0.00017671,2]
[350735446,1738095049183,-928.46,0.00017671,2]
[350735447,1738095049197,-500.0,0.00017671,2]
[350735448,1738095049211,-2107.22,0.00017671,2]
[350735449,1738095049227,-500.0,0.00017671,2]
[350735450,1738095049241,-699.6,0.00017671,2]
[350735451,1738095049254,-613.1,0.00017671,2]
[350735452,1738095049268,-500.0,0.00017671,2]
[350735453,1738095049282,-500.0,0.00017671,2]